bitfinex/quotes_ETHUSD_20251023
["timestamp","ask_amount","ask_price","bid_price","bid_amount"]
[1761202368769,1.02,3893.7,3893.6,0.002]
[1761202368977,1.52688,3894.7,3893.6,0.002]
[1761202369141,0.4313,3893.8,3893.6,0.002]
[1761202369342,1.02,3893.7,3893.6,0.002]
[1761202370971,1.52688,3893.7,3893.6,0.002]
[1761202371478,1.2436,3893.7,3893.6,0.002]
[1761202371777,1.02,3893.7,3893.6,0.002]
[1761202374658,0.2236,3894.1,3893.6,0.002]
[1761202375049,1.02,3894.0,3893.6,0.002]
[1761202377872,0.1288,3893.7,3893.6,0.002]
[1761202378897,1.65568,3893.7,3893.6,0.002]
[1761202379075,1.1488,3893.7,3893.6,0.002]
[1761202380180,1.65568,3893.7,3893.6,0.002]
[1761202380378,1.1488,3893.7,3893.6,0.002]
[1761202380582,1.65568,3893.7,3893.6,0.002]
[1761202380971,1.52688,3893.7,3893.6,0.002]
[1761202382675,1.02,3893.7,3893.6,0.002]
[1761202383265,0.30741894,3894.9,3893.6,0.002]
[1761202383586,1.02,3894.8,3893.6,0.002]
[1761202383785,1.02,3894.7,3893.6,0.002]
[1761202383954,1.02,3894.6,3893.6,0.002]
[1761202384687,0.50688,3894.5,3893.6,0.002]
[1761202387500,0.50688,3894.3,3893.6,0.002]
[1761202389902,0.50688,3894.1,3893.6,0.002]
[1761202390901,0.50688,3893.7,3893.6,0.002]
[1761202391211,1.52688,3893.7,3893.6,0.002]
[1761202393021,1.02,3893.7,3893.6,0.002]
[1761202393884,0.2345,3896.5,3893.6,0.002]
[1761202393885,1.02,3896.2,3893.6,0.4471]
[1761202394087,3.5433,3897.0,3893.6,0.4471]
[1761202394283,1.5502,3896.8,3893.6,0.4471]
[1761202394489,0.50688,3896.7,3893.6,0.002]
[1761202394727,1.02,3896.6,3893.6,0.002]
[1761202394935,0.50688,3895.9,3893.6,0.002]
[1761202395232,0.50688,3895.7,3893.6,0.002]
[1761202398403,0.74215447,3895.6,3892.5,1.21523143]
[1761202398605,0.50688,3895.3,3892.6,1.27742736]
[1761202398810,0.50688,3895.3,3892.5,1.23535041]
[1761202398811,1.543,3895.0,3892.5,1.23535041]
[1761202399009,0.50688,3894.5,3892.5,1.23695041]
[1761202399209,2.04988,3894.1,3892.5,1.23695041]
[1761202399529,0.50688,3894.1,3892.5,1.23695041]
[1761202399831,0.50688,3894.2,3892.5,1.23695041]
[1761202400909,0.50688,3894.2,3892.5,0.0016]
[1761202401251,1.3,3894.4,3892.4,1.25003554]
[1761202401416,2.07208252,3894.4,3892.4,1.25003554]
[1761202401618,2.07208252,3894.4,3892.6,1.27199952]
[1761202401923,1.3,3894.4,3892.5,1.23535041]
[1761202402137,0.67046008,3894.0,3892.5,1.23535041]
[1761202403035,0.50688,3893.9,3892.5,1.23735041]
[1761202403607,0.50688,3893.9,3892.5,0.002]
[1761202404025,0.50688,3893.7,3892.5,0.002]
[1761202404224,0.50688,3893.5,3892.5,0.002]
[1761202404522,0.50688,3893.3,3892.5,0.002]
[1761202405144,0.50688,3893.3,3891.7,0.002]
[1761202405145,0.004,3892.4,3891.7,0.002]
[1761202405307,0.50688,3892.2,3891.7,0.002]
[1761202405509,0.50688,3892.0,3891.7,0.002]
[1761202405740,0.50688,3891.8,3891.7,0.002]
[1761202406042,0.78816071,3891.8,3891.7,0.002]
[1761202407418,1.23698269,3891.8,3891.7,0.002]
[1761202407943,0.78816071,3891.8,3891.7,0.002]
[1761202410024,0.28128071,3891.8,3891.7,0.002]
[1761202410224,0.76832544,3893.4,3891.7,0.002]
[1761202410424,0.50688,3892.4,3891.7,0.002]
[1761202410826,0.29961405,3892.4,3891.7,0.002]
[1761202411026,0.1288,3891.8,3891.7,0.002]
[1761202411223,0.10296606,3893.7,3891.7,0.4629]
[1761202411548,0.26503071,3894.3,3891.7,0.4629]
[1761202411774,1.39839079,3894.0,3891.7,0.4629]
[1761202411922,0.26503071,3893.9,3891.7,0.4629]
[1761202412643,0.50688,3893.8,3891.7,0.4629]
[1761202412844,0.50688,3893.8,3891.7,0.002]
[1761202413049,0.26503071,3893.8,3891.7,0.002]
[1761202413944,0.50688,3893.9,3891.7,0.002]
[1761202414845,0.67046008,3894.0,3891.8,0.4609]
[1761202415738,0.26503071,3895.5,3891.8,0.4609]
[1761202415739,0.4609,3895.0,3891.8,0.4609]
[1761202415943,0.67054732,3894.6,3891.8,0.4609]
[1761202416854,0.50688,3894.5,3891.8,0.4609]
[1761202417271,0.67054732,3894.6,3891.8,0.4609]
[1761202417473,0.50688,3894.5,3891.8,0.4609]
[1761202420149,0.76832544,3894.4,3891.8,0.4609]
[1761202420349,0.50688,3894.3,3891.8,0.4609]
[1761202420578,0.44882198,3894.4,3891.8,0.4609]
[1761202420779,0.50688,3894.1,3891.7,0.002]
[1761202420978,0.44882198,3894.0,3891.7,0.002]
[1761202421277,0.4609,3894.3,3891.8,0.4609]
[1761202421478,0.63568,3891.9,3891.8,0.4609]
[1761202421796,0.63568,3891.9,3891.8,0.002]
[1761202423295,0.63568,3891.9,3891.8,0.4629]
[1761202423597,0.63568,3891.9,3891.8,0.002]
[1761202423812,0.63568,3891.9,3891.8,0.4629]
[1761202424095,0.50688,3891.9,3891.8,0.002]
[1761202424397,0.50688,3891.9,3891.8,0.4629]
[1761202426080,0.50188,3891.9,3891.8,0.4629]
[1761202427008,0.50188,3891.9,3891.8,0.002]
[1761202433173,0.50188,3891.9,3891.8,0.4629]
[1761202433980,0.50188,3891.9,3891.8,0.002]
[1761202434179,0.63068,3891.9,3891.8,0.002]
[1761202438712,0.73365322,3891.9,3891.8,0.002]
[1761202440308,0.63068,3891.9,3891.8,0.002]
[1761202440993,0.63168,3891.9,3891.8,0.002]
[1761202442306,0.73465322,3891.9,3891.8,0.002]
[1761202442814,8.50008,3891.8,3891.7,0.002]
[1761202443710,8.62888,3891.8,3891.7,0.002]
[1761202444037,2.29385322,3891.8,3890.1,0.002]
[1761202444237,2.04988,3891.5,3890.1,0.002]
[1761202444379,1.5552,3891.3,3890.1,0.002]
[1761202444583,0.50688,3891.2,3890.1,0.002]
[1761202444980,0.50688,3891.2,3890.1,0.2211]
[1761202445184,0.50688,3891.2,3890.1,0.002]
[1761202445822,0.50688,3891.0,3890.1,0.002]
[1761202447818,0.50688,3891.0,3890.1,0.2211]
[1761202448705,0.50688,3891.0,3889.5,0.002]
[1761202448706,0.50688,3890.8,3888.0,0.2191]
[1761202449041,0.50688,3890.8,3888.1,0.2191]
[1761202449354,0.96958,3890.8,3888.1,0.2191]
[1761202449683,0.50688,3890.6,3888.1,0.2191]
[1761202450689,0.50688,3890.6,3888.2,0.4484]
[1761202451625,0.50688,3890.8,3888.2,0.4484]
[1761202451926,0.1453,3890.9,3888.2,0.4484]
[1761202452512,0.50688,3890.8,3888.2,0.4484]
[1761202452719,0.50688,3891.1,3888.2,0.4484]
[1761202452926,0.96648,3891.1,3888.2,0.4484]
[1761202453531,0.50688,3890.9,3888.2,0.4484]
[1761202454041,0.1288,3888.4,3888.2,0.4484]
[1761202454560,0.1288,3888.6,3888.2,0.4484]
[1761202454850,0.1288,3889.2,3888.6,0.1288]
[1761202455013,0.1288,3889.2,3888.3,0.50688]
[1761202455212,0.1288,3889.2,3889.1,0.2191]
[1761202455639,0.1288,3889.2,3889.1,0.6675]
[1761202455918,2.70002287,3889.2,3889.1,0.6675]
[1761202456523,2.57122287,3889.2,3889.1,0.6675]
[1761202457756,2.56967661,3891.6,3889.1,0.6675]
[1761202457757,2.57117433,3889.3,3889.1,0.6675]
[1761202457922,2.57117433,3889.3,3889.2,0.4484]
[1761202459639,2.57109065,3889.4,3889.3,0.50688]
[1761202459948,2.57104362,3889.5,3889.3,0.50688]
[1761202460248,2.57031532,3890.6,3889.3,0.50688]
[1761202460249,1.5552,3890.7,3889.5,0.50688]
[1761202460413,2.57089235,3889.7,3889.6,1.101496]
[1761202462025,1.5552,3890.7,3889.6,1.101496]
[1761202462248,2.56996736,3891.1,3889.7,0.98098892]
[1761202462447,2.57023157,3890.7,3890.6,0.2191]
[1761202462856,2.57023157,3890.7,3890.6,0.6675]
[1761202463849,2.60112808,3890.7,3890.6,0.6675]
[1761202465080,2.57089235,3889.7,3889.6,0.653096]
[1761202465218,2.57095845,3889.6,3889.5,0.2191]
[1761202466633,2.57095845,3889.6,3889.5,0.3479]
[1761202467148,2.57095845,3889.6,3889.5,0.5583]
[1761202468654,2.57095845,3889.6,3889.5,0.4295]
[1761202471378,2.60114107,3890.7,3889.5,0.4295]
[1761202471533,2.57089235,3889.7,3889.6,0.2104]
[1761202471733,2.57089235,3889.7,3889.6,0.3392]
[1761202472564,2.57089235,3889.7,3889.6,0.2104]
[1761202477540,2.57189235,3889.7,3889.6,0.2104]
[1761202479665,0.001,3889.7,3889.6,0.2104]
[1761202479835,2.57189235,3889.7,3889.6,0.36490958]
[1761202480040,2.57189235,3889.7,3889.6,0.3392]
[1761202480566,0.001,3889.7,3889.6,0.3392]
[1761202481359,2.57189235,3889.7,3889.6,0.23610958]
[1761202481568,2.57189235,3889.7,3889.6,0.2104]
[1761202483076,0.001,3889.7,3889.6,0.2104]
[1761202483369,0.001,3889.7,3889.6,0.3392]
[1761202484159,2.57189235,3889.7,3889.6,0.3392]
[1761202487088,2.57095845,3889.6,3889.5,0.2191]
[1761202487592,2.57095845,3889.6,3889.5,0.4295]
[1761202487881,2.57095845,3889.6,3889.1,0.002]
[1761202487882,2.57122287,3889.2,3889.1,0.002]
[1761202488053,2.70002287,3889.2,3889.1,0.002]
[1761202488479,2.57122287,3889.2,3889.1,0.002]
[1761202488783,3.03682287,3889.2,3889.1,0.002]
[1761202490381,2.57122287,3889.2,3889.1,0.002]
[1761202491868,3.03682287,3889.2,3889.1,0.002]
[1761202494187,2.93682287,3889.2,3889.1,0.002]
[1761202494594,4.49202287,3889.2,3889.1,0.002]
[1761202495476,4.02642287,3889.2,3889.1,0.002]
[1761202495810,4.49202287,3889.2,3889.1,0.002]
[1761202498503,4.62082287,3889.2,3889.1,0.002]
[1761202500703,4.12668734,3888.8,3888.3,0.002]
[1761202501016,2.57175187,3888.4,3888.3,0.002]
[1761202501514,2.57241343,3887.4,3887.3,0.2104]
[1761202501680,2.57192409,3888.2,3887.8,2.56563079]
[1761202501915,3.01392409,3888.2,3887.8,2.56563079]
[1761202502227,1.7691,3888.7,3887.8,2.56563079]
[1761202502431,0.2139,3888.7,3887.8,2.56563079]
[1761202502594,0.2139,3889.0,3887.9,0.49874126]
[1761202502798,0.2139,3889.0,3887.9,0.2104]
[1761202503197,0.6559,3889.0,3887.9,0.51082013]
[1761202503413,0.6559,3889.0,3887.3,1.2658869]
[1761202503614,0.442,3888.9,3887.3,1.2658869]
[1761202504026,0.442,3888.9,3887.5,1.22753838]
[1761202506915,0.442,3888.9,3887.3,1.2658869]
[1761202507220,0.2139,3890.0,3887.6,1.25039306]
[1761202507419,0.442,3889.6,3887.6,1.25039306]
[1761202507622,0.442,3889.6,3887.8,1.2766288]
[1761202508118,0.442,3889.6,3887.9,0.2104]
[1761202508325,0.442,3889.6,3887.9,0.35910288]
[1761202508526,0.442,3889.6,3887.4,1.2177584]
[1761202509042,0.442,3889.6,3887.3,0.2104]
[1761202509043,0.442,3889.6,3887.3,1.2658869]
[1761202510296,0.442,3889.6,3887.0,1.25127034]
[1761202510802,1e-08,3887.8,3887.0,1.25127034]
[1761202511015,1e-08,3887.8,3887.2,1.28189597]
[1761202512150,0.50688,3888.8,3887.2,1.28189597]
[1761202512445,0.0479,3888.7,3887.4,1.2177584]
[1761202512804,0.0479,3888.7,3887.2,0.2153196]
[1761202512805,0.0479,3888.7,3887.6,1.25039306]
[1761202513368,0.0479,3888.7,3887.3,1.2678869]
[1761202514077,0.0479,3888.7,3887.5,1.22753838]
[1761202515063,0.001,3889.6,3887.7,1.22425971]
[1761202515281,0.0479,3889.3,3887.8,1.7189288]
[1761202515762,0.0479,3889.3,3887.9,0.4423]
[1761202516858,0.0479,3889.3,3887.9,0.46802082]
[1761202517031,0.001,3889.6,3888.0,0.17446496]
[1761202517434,0.001,3889.6,3888.1,0.6659]
[1761202517739,0.001,3889.6,3888.2,0.4423]
[1761202520727,0.1288,3889.0,3888.4,0.1288]
[1761202521132,0.1288,3889.0,3888.5,0.4423]
[1761202521769,0.1288,3889.0,3888.4,0.1288]
[1761202521991,0.1288,3889.0,3888.5,0.4423]
[1761202523881,0.1288,3889.1,3888.6,0.1288]
[1761202524278,0.1288,3889.1,3888.7,0.4376]
[1761202524853,0.1288,3889.1,3888.6,0.1288]
[1761202525059,0.1288,3889.1,3888.4,0.1288]
[1761202525384,0.1288,3889.1,3888.6,0.4376]
[1761202525749,0.1288,3889.1,3888.4,0.1288]
[1761202525970,0.1288,3889.1,3888.6,0.4376]
[1761202526780,0.1288,3889.1,3888.4,0.1288]
[1761202526984,0.1288,3889.1,3888.4,0.5664]
[1761202527150,0.1288,3889.1,3888.5,0.4376]
[1761202530088,0.1288,3889.1,3888.6,0.02571619]
[1761202530289,0.1288,3889.1,3888.6,0.15451619]
[1761202530493,0.1288,3889.1,3888.7,0.4677]
[1761202530694,0.1288,3889.1,3888.7,0.49341553]
[1761202530890,0.001,3889.6,3888.8,0.50688]
[1761202531095,0.1288,3889.3,3888.8,0.63568]
[1761202531273,0.1288,3889.3,3888.9,0.4677]
[1761202531473,0.1288,3889.3,3889.2,0.2304]
[1761202532050,0.1288,3889.3,3889.2,0.6981]
[1761202533174,0.001,3889.6,3889.2,0.6981]
[1761202533381,0.1288,3889.5,3889.3,0.4677]
[1761202533897,0.001,3889.6,3889.3,0.4677]
[1761202534091,0.1298,3889.6,3889.3,0.49341156]
[1761202534304,0.1298,3889.6,3889.3,0.4677]
[1761202535104,0.1298,3889.6,3889.4,0.50688]
[1761202535319,0.001,3889.6,3889.5,0.02571024]
[1761202535485,0.001,3889.6,3889.5,1.32354986]
[1761202535818,0.001,3889.6,3889.5,3.32545586]
[1761202538423,0.001,3889.6,3889.5,4.88065586]
[1761202541129,0.001,3889.6,3889.5,2.87874986]
[1761202541630,0.001,3889.6,3889.5,0.32325962]
[1761202541800,0.001,3889.6,3888.3,2.001906]
[1761202541801,0.001,3889.6,3888.6,0.4677]
[1761202542128,0.001,3889.6,3888.5,2.001906]
[1761202542431,0.001,3889.6,3889.5,0.2304]
[1761202542797,0.001,3889.6,3889.5,1.20498]
[1761202545318,0.001,3889.6,3889.5,1.33378]
[1761202545731,0.001,3889.6,3889.5,1.467158]
[1761202546035,0.001,3889.6,3889.5,7.62099879]
[1761202546336,0.001,3889.6,3889.5,7.59528855]
[1761202548842,0.001,3889.6,3889.5,5.59338255]
[1761202552935,0.001,3889.6,3889.5,2.515478]
[1761202553138,0.001,3889.6,3889.5,2.54118824]
[1761202553314,0.001,3889.6,3889.5,2.515478]
[1761202553521,0.001,3889.6,3889.5,3.022358]
[1761202554118,0.001,3889.6,3889.5,5.59338255]
[1761202554826,0.001,3889.6,3889.5,3.022358]
[1761202555438,0.001,3889.6,3889.5,3.04806824]
[1761202555642,0.001,3889.6,3889.5,3.022358]
[1761202556028,0.001,3889.6,3889.5,3.04806824]
[1761202556850,0.001,3889.6,3889.5,5.61909279]
[1761202557147,0.001,3889.6,3889.5,5.59338255]
[1761202560454,0.001,3889.6,3889.5,2.998658]
[1761202560650,0.001,3889.6,3889.5,5.56968255]
[1761202561538,0.001,3889.6,3889.5,2.998658]
[1761202564728,0.001,3889.6,3889.5,5.56968255]
[1761202565224,0.001,3889.7,3889.6,5.04295619]
[1761202565420,0.001,3890.0,3889.9,4.63284017]
[1761202565624,0.001,3890.5,3890.1,0.50688]
[1761202565839,0.001,3890.5,3890.3,0.72178]
[1761202566046,0.001,3890.5,3890.3,0.85058]
[1761202566268,0.001,3890.5,3890.3,1.29458]
[1761202566567,0.001,3890.5,3890.3,1.58212856]
[1761202566771,0.001,3890.5,3890.3,1.60783351]
[1761202567072,0.001,3890.5,3890.3,5.73352935]
[1761202567278,0.001,3890.5,3890.3,5.7078244]
[1761202571553,0.001,3890.5,3890.3,5.5790244]
[1761202573392,0.001,3890.5,3890.3,5.1350244]
[1761202573575,0.001,3890.5,3890.3,5.3641244]
[1761202574605,0.001,3890.5,3890.3,4.9201244]
[1761202575189,0.001,3890.5,3890.3,5.3641244]
[1761202575964,0.001,3890.5,3890.3,4.9201244]
[1761202576165,0.001,3890.5,3890.3,4.94582935]
[1761202576389,0.001,3890.5,3890.3,4.9201244]
[1761202576599,0.001,3890.5,3890.3,5.3641244]
[1761202578696,0.001,3890.5,3890.3,4.9201244]
[1761202579412,0.001,3890.5,3890.3,1.84274856]
[1761202579612,0.2147,3890.4,3890.3,1.58090495]
[1761202579817,0.001,3890.4,3890.3,1.58090495]
[1761202580612,0.001,3890.4,3890.3,2.08778495]
[1761202581593,0.001,3890.4,3890.3,2.21658495]
[1761202582017,0.2147,3890.4,3890.3,2.19088]
[1761202582523,0.2147,3890.4,3890.3,0.1288]
[1761202583499,0.2147,3890.4,3890.3,0.63568]
[1761202588441,0.2147,3890.4,3890.3,0.1288]
[1761202588743,0.2147,3890.4,3890.1,0.002]
[1761202589331,0.2147,3890.4,3890.2,0.02570561]
[1761202589652,0.001,3890.4,3890.3,2.77858495]
[1761202589821,0.001,3890.4,3890.3,3.03093849]
[1761202591312,0.001,3890.4,3890.3,0.78493849]
[1761202591625,0.001,3890.4,3890.3,4.06093849]
[1761202593565,0.001,3890.4,3890.3,5.61613849]
[1761202596572,0.2147,3890.4,3890.1,0.002]
[1761202596745,0.2147,3890.4,3890.2,3.274]
[1761202596950,0.2147,3890.4,3890.3,0.50688]
[1761202597146,0.2147,3890.4,3890.2,3.274]
[1761202597953,0.2147,3890.4,3890.3,0.50688]
[1761202598254,0.2147,3890.4,3890.3,3.77988]
[1761202598654,0.2147,3890.4,3890.3,3.90868]
[1761202600078,0.2147,3890.4,3890.3,0.63568]
[1761202600280,0.2147,3890.4,3890.3,3.90868]
[1761202601988,0.2147,3890.4,3890.3,0.63568]
[1761202602290,0.2147,3890.4,3890.3,3.90668]
[1761202603193,0.001,3890.4,3890.3,4.12500154]
[1761202603882,0.2147,3890.4,3890.3,4.12500154]
[1761202604278,0.001,3890.4,3890.3,4.12500154]
[1761202604575,0.001,3890.4,3890.3,0.85400154]
[1761202604874,0.2147,3890.4,3890.3,3.77788]
[1761202607289,0.2147,3890.4,3890.3,3.77688]
[1761202608066,0.2147,3890.4,3890.3,0.50688]
[1761202608365,0.2147,3890.4,3890.3,3.77688]
[1761202610895,0.001,3890.4,3890.3,3.77688]
[1761202611103,0.001,3890.4,3890.3,4.154768]
[1761202611289,0.001,3890.4,3890.3,3.27]
[1761202611485,0.001,3890.4,3890.3,3.77688]
[1761202613205,0.001,3890.4,3890.3,3.90568]
[1761202615015,0.001,3890.4,3890.3,3.85568]
[1761202617135,0.001,3890.4,3890.3,13.08620139]
[1761202617331,0.001,3890.4,3890.3,9.28548876]
[1761202617482,0.001,3890.4,3890.3,12.11110571]
[1761202617822,0.001,3890.4,3890.3,7.54148]
[1761202618126,0.001,3890.4,3890.3,8.37597584]
[1761202618435,0.001,3890.4,3890.3,5.07097584]
[1761202618720,0.001,3890.4,3890.3,8.37697584]
[1761202618910,0.001,3890.4,3890.3,9.84434832]
[1761202620204,0.001,3890.4,3890.3,11.57934832]
[1761202620408,0.001,3890.4,3890.3,13.57847819]
[1761202620589,0.001,3890.4,3890.3,8.53847819]
[1761202620921,0.001,3890.4,3890.3,10.37510571]
[1761202621120,0.001,3890.4,3890.3,1.5552]
[1761202621494,0.2161,3890.4,3890.1,0.002]
[1761202621816,0.001,3890.4,3890.3,1.5552]
[1761202622218,0.001,3890.4,3890.3,2.49758]
[1761202622424,0.001,3890.4,3890.3,2.52328495]
[1761202622731,0.001,3890.4,3890.3,5.3054563]
[1761202622888,0.001,3890.4,3890.3,5.27975135]
[1761202623392,0.001,3890.4,3890.3,2.84512148]
[1761202623816,0.001,3890.4,3890.3,2.49758]
[1761202624014,0.001,3890.4,3890.3,5.80358]
[1761202624219,0.001,3890.4,3890.3,5.36808]
[1761202624522,0.001,3890.4,3890.3,2.06208]
[1761202624818,0.001,3890.4,3890.3,5.36808]
[1761202625018,0.001,3890.4,3890.3,6.20570637]
[1761202625217,0.001,3890.4,3890.3,2.06208]
[1761202625526,0.001,3890.4,3890.3,5.36808]
[1761202626517,0.001,3890.4,3890.3,2.06208]
[1761202626716,0.001,3890.4,3890.1,0.002]
[1761202627026,0.2151,3890.3,3890.1,0.222]
[1761202627225,1.011,3890.4,3890.2,0.50688]
[1761202627524,1.011,3890.4,3890.2,0.1288]
[1761202627726,1.011,3890.4,3890.3,0.50688]
[1761202628025,1.011,3890.4,3890.3,0.02570495]
[1761202628232,1.011,3890.4,3890.3,0.50688]
[1761202628542,1.011,3890.4,3890.2,0.50688]
[1761202629328,1.011,3890.4,3890.3,2.50600987]
[1761202629532,1.011,3890.4,3890.3,3.33425381]
[1761202629939,1.011,3890.4,3890.3,4.19891899]
[1761202630139,1.011,3890.4,3890.3,3.83188]
[1761202631141,1.011,3890.4,3890.3,0.50688]
[1761202631347,1.2263,3890.4,3890.3,3.324]
[1761202631544,1.2263,3890.4,3890.3,3.325]
[1761202631714,1.2263,3890.4,3890.1,0.002]
[1761202632042,0.2153,3890.3,3890.2,3.325]
[1761202632734,0.2153,3890.3,3890.2,3.83188]
[1761202634449,0.2153,3890.3,3890.2,0.50688]
[1761202634622,1.011,3890.4,3890.2,3.82988]
[1761202634826,1.2263,3890.4,3890.3,0.50688]
[1761202635135,1.011,3890.4,3890.3,0.50688]
[1761202635531,1.2263,3890.4,3890.3,0.50688]
[1761202637045,1.2263,3890.4,3890.3,0.890068]
[1761202637046,1.011,3890.4,3890.3,0.890068]
[1761202637235,1.011,3890.4,3890.3,1.325568]
[1761202638119,1.011,3890.4,3890.3,1.454368]
[1761202640237,1.011,3890.4,3890.3,1.018868]
[1761202640739,1.011,3890.4,3890.3,1.454368]
[1761202646159,1.011,3890.4,3890.3,3.009568]
[1761202650846,1.011,3890.4,3890.3,3.011568]
[1761202653638,1.011,3890.4,3890.3,2.576068]
[1761202655853,1.011,3890.4,3890.3,5.882068]
[1761202656569,1.011,3890.4,3890.3,2.576068]
[1761202656770,1.011,3890.4,3890.3,5.882068]
[1761202657141,1.011,3890.4,3890.3,2.576068]
[1761202657345,1.011,3890.4,3890.3,5.49788]
[1761202660887,1.011,3890.4,3890.3,2.19288]
[1761202661278,1.2297,3890.4,3890.3,4.41188]
[1761202661583,1.011,3890.4,3890.3,4.41188]
[1761202662295,1.2297,3890.4,3890.3,4.41188]
[1761202662462,1.2297,3890.4,3890.3,5.49588]
[1761202662763,1.2297,3890.4,3890.3,2.19288]
[1761202662963,1.2297,3890.4,3890.3,5.49588]
[1761202663790,1.2297,3890.4,3890.3,5.49488]
[1761202664094,1.011,3890.4,3890.3,6.044568]
[1761202664461,1.2297,3890.4,3890.3,5.49488]
[1761202664790,1.2297,3890.4,3890.3,0.1308]
[1761202665087,1.2297,3890.4,3890.3,3.93968]
[1761202665460,1.011,3890.4,3890.3,3.93968]
[1761202666072,1.011,3890.4,3890.3,5.92648]
[1761202666472,1.011,3890.4,3890.3,6.087728]
[1761202670662,1.011,3890.4,3890.3,2.785728]
[1761202670896,1.011,3890.4,3890.3,5.49288]
[1761202672904,1.011,3890.4,3890.3,1.44719065]
[1761202673118,1.738437,3890.4,3890.1,0.002]
[1761202673318,0.2144,3890.3,3889.7,0.002]
[1761202673628,0.2101,3889.8,3889.7,0.002]
[1761202674110,0.4244,3889.8,3889.7,0.002]
[1761202677506,1.4344,3889.8,3889.7,0.002]
[1761202682821,1.2201,3889.8,3889.7,0.02770892]
[1761202682978,1.4344,3889.8,3889.7,0.002]
[1761202683793,1.2201,3889.8,3889.7,0.002]
[1761202685713,1.4344,3889.8,3889.7,0.002]
[1761202686318,1.2201,3889.8,3889.7,0.002]
[1761202686515,1.01,3889.8,3889.7,0.002]
[1761202687518,1.01,3890.0,3889.7,0.002]
[1761202688014,1.01,3890.0,3889.8,0.50688]
[1761202688677,0.001,3890.4,3889.8,0.94488]
[1761202688678,1.01,3889.9,3889.8,0.94488]
[1761202688884,1.01,3889.9,3889.8,1.45259019]
[1761202689218,1.011,3890.4,3889.8,3.51569757]
[1761202689530,1.011,3890.4,3890.0,0.50688]
[1761202689709,1.011,3890.4,3890.2,0.50688]
[1761202690212,1.011,3890.4,3890.3,0.94488]
[1761202690413,1.011,3890.4,3890.3,1.67651648]
[1761202690979,1.011,3890.4,3890.3,4.24701232]
[1761202691184,1.011,3890.4,3890.3,4.27271727]
[1761202691484,1.011,3890.4,3890.3,5.82791727]
[1761202691830,1.011,3890.4,3890.3,5.80221232]
[1761202692022,1.011,3890.4,3890.3,3.23171648]
[1761202692712,1.011,3890.4,3890.3,5.80221232]
[1761202693103,1.011,3890.4,3890.3,5.93101232]
[1761202697232,1.011,3890.4,3890.3,5.80221232]
[1761202697468,1.011,3890.4,3890.3,5.93101232]
[1761202704051,1.011,3890.4,3890.3,10.95201232]
[1761202705099,0.001,3891.4,3890.3,10.95201232]
[1761202705100,0.001,3891.4,3890.5,2.5703637]
[1761202705372,0.001,3891.4,3891.1,4.63204736]
[1761202705561,0.001,3891.4,3891.1,8.18474703]
[1761202705736,0.001,3891.4,3891.1,8.63024736]
[1761202711181,0.001,3891.4,3891.1,8.64024736]
[1761202711383,0.001,3891.4,3891.1,9.76128204]
[1761202712684,0.001,3891.4,3891.1,9.75128204]
[1761202715086,0.001,3891.4,3891.1,9.88008204]
[1761202719095,0.001,3891.4,3891.1,13.73008204]
[1761202719676,0.001,3891.4,3891.1,13.74008204]
[1761202724996,0.001,3891.4,3891.1,15.47408204]
[1761202725303,0.001,3891.4,3891.1,12.18308204]
[1761202725509,0.001,3891.4,3891.1,15.45408204]
[1761202726007,0.001,3891.4,3891.1,10.43908204]
[1761202726311,0.001,3891.4,3891.1,15.45308204]
[1761202726887,0.001,3891.4,3891.1,10.43908204]
[1761202727090,0.001,3891.4,3891.1,14.23900204]
[1761202727781,0.001,3891.4,3891.1,14.74588204]
[1761202727982,0.001,3891.4,3891.1,15.20838204]
[1761202728188,0.001,3891.4,3891.1,10.19438204]
[1761202728482,0.001,3891.4,3891.1,15.20838204]
[1761202730176,0.001,3891.4,3891.1,14.74588204]
[1761202730600,0.2279,3891.4,3891.1,14.74588204]
[1761202730804,0.2279,3891.4,3891.1,5.38500204]
[1761202731005,0.2279,3891.4,3891.1,10.39700204]
[1761202731515,0.2279,3891.4,3891.1,10.90388204]
[1761202731899,0.001,3891.4,3891.1,10.90388204]
[1761202735208,0.001,3891.4,3891.1,11.36638204]
[1761202735641,0.001,3891.4,3891.1,10.90388204]
[1761202736941,0.001,3891.4,3891.1,5.89188204]
[1761202737248,0.001,3891.4,3891.1,10.90288204]
[1761202738744,0.001,3891.4,3891.1,5.89188204]
[1761202738945,0.001,3891.4,3891.1,10.90288204]
[1761202739133,0.2279,3891.2,3891.1,5.89188204]
[1761202739335,0.001,3891.2,3891.1,10.90188204]
[1761202740738,0.001,3891.2,3891.1,11.36648204]
[1761202741433,0.001,3891.2,3891.1,10.90188204]
[1761202741745,0.001,3891.2,3891.1,11.36648204]
[1761202742429,0.001,3891.2,3891.1,10.90188204]
[1761202742635,0.001,3891.2,3891.1,11.36648204]
[1761202743328,0.001,3891.2,3891.1,12.01698688]
[1761202743527,0.001,3891.2,3891.1,12.11984174]
[1761202744427,0.001,3891.2,3891.1,12.02698688]
[1761202745220,0.001,3891.9,3891.8,4.63158511]
[1761202745421,0.001,3891.9,3891.8,8.39688016]